Cogmind - Beta 11.1 *** ADVENTURER MODE // 2022.05.04 @ 17:29:35 Player: OsaErisXero Result: Destroyed by YI-UF0 with YI-UF0's Doublenader Performance ------------- Evolutions (0) 0 Regions Visited (2) 400 Robots Destroyed (13) 65 Value Destroyed (415) 415 Prototype IDs (0) 0 Alien Tech Used (0) 0 Bonus (0) 0 TOTAL SCORE: 880 Bonus ------- None Cogmind --------- Core Integrity 0/250 Matter 260/300 Energy 246/250 System Corruption 0% Temperature Cool (2) Movement Walking (260) Ox2 Location -10/Mines Parts ------- > --- POWER (1) -------- Ion Engine > --- PROPULSION (2) --- Aluminum Leg Aluminum Leg > --- UTILITY (2) ------ High-capacity Storage Unit Visual Processing Unit > --- WEAPON (2) ------- Heavy Assault Rifle Plasma Cutter > --- INVENTORY (20) --- Ion Engine Light Ion Engine Heat Sink Terrain Scanner Small Laser Light EM Pulse Cannon Beam Cannon Heavy Assault Rifle Heavy Assault Rifle Peak State ------------ > --- POWER ------------ Ion Engine > --- PROPULSION ------- Aluminum Leg Aluminum Leg > --- UTILITY ---------- High-capacity Storage Unit Visual Processing Unit > --- WEAPON ----------- Light EM Pulse Cannon Heavy Assault Rifle > --- INVENTORY -------- Ion Engine Light Ion Engine Aluminum Leg Terrain Scanner Small Laser Heavy Assault Rifle Heavy Assault Rifle Plasma Cutter [Rating: 11] Favorites ----------- Power Light Ion Engine Engine Light Ion Engine Propulsion Aluminum Leg Leg Aluminum Leg Utility High-capacity Storage Unit Device Seismic Detector Storage High-capacity Storage Unit Processor Visual Processing Unit Weapon Medium Laser Energy Gun Medium Laser Energy Cannon Light EM Pulse Cannon Ballistic Gun Light Assault Rifle Special Weapon Plasma Cutter Build | -11 -10 -10 ------- Run | Scr Mat Min Slots Evolved . | . . . Power . | . . . Propulsion . | . . . Utility . | . . . Weapon . | . . . Parts Attached 18 | 5 11 2 Power 3 | 1 2 . Engine 3 | 1 2 . Core . | . . . Reactor . | . . . Propulsion 6 | 2 3 1 Treads . | . . . Leg 6 | 2 3 1 Wheel . | . . . Hover . | . . . Flight . | . . . Utility 3 | . 3 . Device 1 | . 1 . Storage 1 | . 1 . Processor 1 | . 1 . Hackware . | . . . Protection . | . . . Artifact . | . . . Weapon 6 | 2 3 1 Energy Gun 2 | 1 1 . Energy Cannon 1 | . 1 . Ballistic Gun 2 | 1 1 . Ballistic Cannon . | . . . Launcher . | . . . Special Weapon 1 | . . 1 Impact Weapon . | . . . Slashing Weapon . | . . . Piercing Weapon . | . . . Special Melee Weapon . | . . . Unidentified Prototypes . | . . . Parts Lost 8 | . 6 2 Power 1 | . 1 . Propulsion 3 | . 2 1 Utility 1 | . 1 . Weapon 3 | . 2 1 Highest Loss Streak 6 | . 6 2 To Critical Strikes . | . . . Average Slot Usage (%) 84 | . 83 91 Engine 13 | . 13 14 Leg 26 | . 26 25 Device 2 | . 3 . Storage 9 | . 8 14 Processor 5 | . 2 14 Energy Gun 9 | . 11 . Energy Cannon 7 | . 9 2 Ballistic Gun 7 | . 6 14 Naked Turns . | . . . Heaviest Build 52 | 6 52 52 Greatest Support 20 | 20 20 20 Greatest Overweight (x) 4 | . 2 4 Average Overweight (x) . | . . 2 Largest Inventory Capacity 20 | 5 20 20 Average Capacity 10 | 5 14 20 Most Carried 11 | 3 11 11 Average Carried 3 | 1 4 9 Final Capacity 20 | 5 20 20 Final Carried 11 | 1 11 9 Class Distribution -------------------- 100% | Mutant Dominant Class ---------------- Mutant | -10/Materials Mutant | -10/Mines Resources | -11 -10 -10 ----------- Run | Scr Mat Min Matter Collected 352 | 255 97 . Remotely . | . . . Salvage Created 340 | 37 258 45 Parts 22 | . 15 7 Haulers Intercepted . | . . . Recyclers Shooed . | . . . Parts Field Recycled . | . . . Retrieved Matter . | . . . Parts Self-Destructed . | . . . Prevented . | . . . Kills | -11 -10 -10 ------- Run | Scr Mat Min Combat Hostiles Destroyed 11 | 1 5 5 Guns 9 | 1 5 3 Cannons 1 | . . 1 AOE 1 | . . 1 Classes Destroyed 4 | 1 1 2 Watcher 2 | . 2 . Swarmer 3 | . . 3 Grunt 6 | 1 5 . Demolisher 2 | . . 2 Best Kill Streak 5 | 1 3 5 Combat Bots Only 5 | 1 3 5 Max Kills in Single Turn 1 | 1 1 1 Gunslinging . | . . . Exploded 1 | . . 1 Melee . | . . . Uniques/NPCs Destroyed . | . . . Combat | -11 -10 -10 -------- Run | Scr Mat Min Damage Taken 1012 | 25 557 430 Core 256 | . 161 95 Absorbed by Shields . | . . . Core Remaining (%) 100 | 100 . . Volleys Fired 55 | 5 35 15 Largest 2 | 2 2 2 Hottest 96 | 70 96 79 Shots Fired 87 | 10 54 23 Gun 70 | 10 50 10 Cannon 12 | . 4 8 Launcher . | . . . Special 5 | . . 5 Kinetic 33 | 5 18 10 Thermal 42 | 5 32 5 Explosive . | . . . Electromagnetic 12 | . 4 8 Robot Hit Streak 16 | 7 16 11 Robot Miss Streak 3 | 1 3 2 Penetration Max . | . . . Secondary Targets 1 | . 1 . Max Gunslinging Chain 1 | . 1 . Shots Hit Robots 64 | 9 41 14 Core Hits 24 | 2 16 6 Critical Kills . | . . . Critical Parts Destroyed 1 | 1 . . Critical Strikes 3 | 1 2 . Burn 2 | . 2 . Destroy 1 | 1 . . Melee Attacks . | . . . Impact . | . . . Slashing . | . . . Piercing . | . . . Sneak Attacks . | . . . Combat Hostiles . | . . . Follow-up Attacks . | . . . Damage Inflicted 909 | 95 559 255 Guns 645 | 95 442 108 Cannons 232 | . 116 116 Explosions 31 | . . 31 Melee . | . . . Ramming 1 | . 1 . Kinetic 246 | 31 107 108 Thermal 430 | 64 335 31 Explosive . | . . . Electromagnetic 232 | . 116 116 Impact . | . . . Slashing . | . . . Piercing . | . . . Highest Corruption . | . . . Average Corruption . | . . . Corruption Purged . | . . . Corruption Blocked . | . . . Overload Shots . | . . . Overflow Damage 54 | . 54 . Projectiles 54 | . 54 . Explosions . | . . . Melee . | . . . Knockbacks . | . . . Impact . | . . . Kinetic . | . . . Secondary . | . . . Self-Inflicted Damage . | . . . Shots . | . . . Rammed . | . . . Targets Rammed 1 | . 1 . Kicked 1 | . 1 . Crushed . | . . . Highest Temperature 376 | 108 376 72 Average Temperature 122 | 60 157 33 Received Heat Transfer 441 | 18 423 . Effects 3 | . 3 . Interference 1 | . 1 . Short Circuit 1 | . 1 . Damage (minor) 1 | . 1 . Siege Activations . | . . . Robots Corrupted . | . . . Combat Hostiles . | . . . Parts Fried 3 | . 2 1 Impact Corruptions . | . . . Robots Melted . | . . . Combat Hostiles . | . . . Parts Melted 2 | . 2 . Heat Transferred 1311 | 185 1076 50 Parts Sabotaged . | . . . Parts Stolen . | . . . Parts Stripped . | . . . Power Chain Reactions 1 | . . 1 Missiles Intercepted . | . . . Alert | -11 -10 -10 ------- Run | Scr Mat Min Peak Influence 118 | 20 111 118 Initial . | . . . Average 29 | 7 32 107 Maximum Alert Level . | . . . Low Security (%) 100 | 100 100 100 Level 1 . | . . . Level 2 . | . . . Level 3 . | . . . Level 4 . | . . . Level 5 . | . . . High Security . | . . . Max Security . | . . . Squads Dispatched . | . . . Investigation . | . . . Extermination . | . . . Reinforcement . | . . . Assault . | . . . Garrison . | . . . Intercept . | . . . Searches Triggered . | . . . Construction Impeded . | . . . Haulers Reinforced . | . . . Active Scanning Responses . | . . . Cargo Convoy Interrupts . | . . . Stealth | -11 -10 -10 --------- Run | Scr Mat Min Distress Signals 1 | . 1 . Communications Jammed . | . . . Distress Signals . | . . . Times Spotted 19 | 1 12 6 Peak Tracking Total 6 | 1 6 3 Tactical Retreats . | . . . Traps | -11 -10 -10 ------- Run | Scr Mat Min Traps Triggered . | . . . Indirectly . | . . . Trap Hack Attempts . | . . . Triggered . | . . . Disarmed . | . . . Reprogrammed . | . . . Reused . | . . . Traps Extracted . | . . . Installed . | . . . Triggered . | . . . Machines | -11 -10 -10 ---------- Run | Scr Mat Min Machines Disabled 3 | . 1 2 Max in Single Turn 1 | . 1 1 Machines Sabotaged . | . . . Garrisons Compromised . | . . . Overloaded Fab Kills . | . . . Hacking | -11 -10 -10 --------- Run | Scr Mat Min Machines Accessed 1 | . 1 . Terminals 1 | . 1 . Fabricators . | . . . Repair Stations . | . . . Recycling Units . | . . . Scanalyzers . | . . . Garrison Access . | . . . Total Hacks 1 | . 1 . Successful 1 | . 1 . Failed . | . . . Catastrophic . | . . . Database Lockouts . | . . . Manual . | . . . Terminals 1 | . 1 . Fabricators . | . . . Repair Stations . | . . . Recycling Units . | . . . Scanalyzers . | . . . Garrison Access . | . . . Terminal Hacks 1 | . 1 . Record 1 | . 1 . Fabricator Hacks . | . . . Repair Station Hacks . | . . . Recycling Unit Hacks . | . . . Scanalyzer . | . . . Garrison Access Hacks . | . . . Unauthorized Hacks . | . . . Terminals . | . . . Fabricators . | . . . Repair Stations . | . . . Recycling Units . | . . . Scanalyzers . | . . . Garrison Access . | . . . Data Cores Recovered . | . . . Used . | . . . Hacking Detections . | . . . Full Trace Events . | . . . Feedback Events . | . . . Feedback Blocked . | . . . Robot Schematics Acquired . | . . . Robots Built . | . . . Authchips . | . . . Time . | . . . Total Robot Build Rating . | . . . Part Schematics Acquired . | . . . Parts Built . | . . . Authchips . | . . . Time . | . . . Total Part Build Rating . | . . . Parts Repaired . | . . . Time . | . . . Parts Recycled . | . . . Recycled Matter . | . . . Retrieved Matter . | . . . Retrieved Components . | . . . Parts Scanalyzed . | . . . Part Schematics Acquired . | . . . Parts Damaged . | . . . Bothacking | -11 -10 -10 ------------ Run | Scr Mat Min Used RIF Installer . | . . . Robots Hacked . | . . . Non-combat . | . . . Combat . | . . . Robot Hacks Applied . | . . . Relay Couplers Released . | . . . Fabnet Peak Effective % . | . . . Robots Rewired . | . . . Allies Hacked . | . . . Hacks Repelled . | . . . Allies | -11 -10 -10 -------- Run | Scr Mat Min Total Allies . | . . . Largest Group . | . . . Highest-Rated Group . | . . . Highest-Rated Ally . | . . . Total Orders . | . . . Ally Attacks . | . . . Total Damage . | . . . Kills . | . . . Allies Corrupted . | . . . Allies Melted . | . . . Intel | -11 -10 -10 ------- Run | Scr Mat Min Robot Analysis Total . | . . . Derelict Logs Recovered . | . . . Drone Launches . | . . . Drone Recoveries . | . . . Exploration | -11 -10 -10 ------------- Run | Scr Mat Min Turns Passed 1802 | 802 806 194 Spaces Moved 744 | 318 371 55 Core 36 | 18 18 . Treads . | . . . Legs 708 | 300 353 55 Wheels . | . . . Hover . | . . . Flight . | . . . Fastest Speed 50 | 50 50 260 Average Speed 162 | 116 185 275 Slowest Speed 400 | 120 260 400 Overloaded Moves . | . . . Propulsion Burnouts . | . . . Robots Hopped . | . . . Cave-ins Triggered . | . . . Exploration Rate (%) 35 | 24 65 18 Regions Visited 2 Branch Regions 1 Pre-discovered Areas . | . . . Known Exits Taken . | . . . Unknown Exits Taken 2 | 1 1 . Scrap Searched . | . . . Spaces Dug . | . . . Terrain Destroyed . | . . . Melee . | . . . Projectile . | . . . AOE . | . . . Terrain Rammed . | . . . Walls Destroyed . | . . . Machines Disabled . | . . . Actions | -11 -10 -10 --------- Run | Scr Mat Min Total 1251 | 742 437 72 Wait 409 | 409 . . Move 742 | 317 370 55 Hop . | . . . Pick Up 25 | 6 19 . Fast Attach . | . . . Attach 15 | 5 8 2 Detach . | . . . Swap 3 | . 3 . Drop 1 | . 1 . Fire 55 | 5 35 15 Melee . | . . . Ram . | . . . Kick 1 | . 1 . Crush . | . . . Escape Stasis . | . . . Rewire . | . . . Trap . | . . . Miscellaneous . | . . . Route ------- -11/Scrapyard -10/Materials (discovered 3 exits: [*Mat x2] / [*Min]) -10/Mines (discovered 1 exit: [*Mat]) History --------- Turn | Location | Event 2 | -11/Scrapyard | Met Revision 17 62 | -11/Scrapyard | Discovered new exit (range 8) 803 | -11/Scrapyard | Entered Materials 804 | -10/Materials | Build established: Mutant 963 | -10/Materials | Discovered new exit (range 8) 1039 | -10/Materials | Core integrity fell below 50% 1065 | -10/Materials | Lost 6 parts (1p2n1u2w) 1196 | -10/Materials | Discovered new exit (range 15) 1376 | -10/Materials | Discovered new exit (range 16) 1609 | -10/Materials | Entered Mines 1610 | -10/Mines | Assembled infested the area 1615 | -10/Mines | Assisted by a Guerilla fighting off Assembled 1634 | -10/Mines | Discovered new exit (range 17) 1638 | -10/Mines | Core integrity fell below 20% 1803 | -10/Mines | Destroyed by YI-UF0 with YI-UF0's Doublenader Last Messages --------------- 01679_ U-05 Engineer lays Concrete. 01683_ K-01 Serf collects debris. 01684_ U-05 Engineer lays Concrete. 01685_ The unstable cave ceiling collapses. 01685_ U-05 Engineer builds a Wall. 01690_ U-05 Engineer lays Concrete. 01694_ The unstable cave ceiling collapses. 01694_ U-05 Engineer lays Concrete. 01695_ U-05 Engineer builds a Wall. 01696_ U-05 Engineer lays Concrete. 01701_ R-06 Scavenger collects Flight Unit. 01702_ U-05 Engineer lays Concrete. 01713_ U-05 Engineer builds a Wall. 01738_ U-05 Engineer lays Concrete. 01776_ K-01 Serf destroyed. 01776_ Laser Drill disabled. 01778_ R-06 Scavenger destroyed. 01778_ U-05 Engineer destroyed. 01788_ The unstable cave ceiling collapses. 01800_ R-06 Scavenger collects Wheel. Map ----- +----------------------------------------------------+ | ?????????????????????????????????????????????????? | | ?????????????????????????????????????????????????? | | ?????????????????????????????????????????????????? | | ?????????????????????????????????????????????????? | | ?????????????????????????????????????????????????? | | ?????????????????????????????????????????????????? | | ?????????????????????????????????????????????????? | | ?????????????????????????????????????????????????? | | ?????????????????????????????????????????????????? | | ???????????????????????????? ???????????????????? | | ???????????????????????????? ????????????????? | | ??????????????????????????? = = ??????????????? | | ??????????????????????????? # ! #? % ???????????? | | ??????????????????????????? ? ????????????? | | ???????????#########??????? g ? %????????????? | | ??????????### # #######??# ## ????????????? | | ??########### ## # ##? # ?????????????? | | ??# ## ??????????????? | | ??# ## #??????????????? | | ??# # ! # #??????????????? | | ??# % # # #??????????????? | | ??# """ """ # #??????????????? | | ??# """ """ ! ##?????????????? | | ??# """ """ " !% #?????????????? | | ??# % #?????????????? | | ??# """ """ """= " " @ r #?????????????? | | ??# """ """ """ " " # < ##?????????????? | | ??# """ """ """ """ " #??????????????? | | ??# # ####??????????????? | | ??########################### ##?????????????????? | | ?????????????????????????????##??????????????????? | | ?????????????????????????????????????????????????? | | ?????????????????????????????????????????????????? | | ?????????????????????????????????????????????????? | | ?????????????????????????????????????????????????? | | ?????????????????????????????????????????????????? | | ?????????????????????????????????????????????????? | | ?????????????????????????????????????????????????? | | ?????????????????????????????????????????????????? | | ?????????????????????????????????????????????????? | | ?????????????????????????????????????????????????? | | ?????????????????????????????????????????????????? | | ?????????????????????????????????????????????????? | | ?????????????????????????????????????????????????? | | ?????????????????????????????????????????????????? | | ?????????????????????????????????????????????????? | | ?????????????????????????????????????????????????? | | ?????????????????????????????????????????????????? | | ?????????????????????????????????????????????????? | | ?????????????????????????????????????????????????? | +----------------------------------------------------+ Best States ------------- Heat Dissipation 25 Energy Generation 10 Energy Capacity 250 Matter Stores 300 Matter Capacity 300 Sight Range 18 Terrain Scan Density 10 Resistance: KI 20 Resistance: TH 20 Resistance: EX 20 Resistance: EM 20 Resistance: I 20 Resistance: S 20 Resistance: P 20 Evasion (%) 55 Offensive Hacking 10 Item Schematics ----------------- None Robot Schematics ------------------ None Fabricated ------------ Nothing Alien Tech Used ----------------- None Achievements -------------- None Challenges ------------ None Game ------ Seed GravmagEnhancedAnalyzer Manual? 0 Play Time 00:21:17 Cumulative 3.5 hours Start 2022.05.04 @ 17:03:02 End 2022.05.04 @ 17:29:35 Sessions 1 Manual Loads 0 Difficulty Adventurer Special Mode None Game No. 3 Rogue 0 Adventurer 3 Explorer 0 Win Type - Total 0 Types 0/0/0/0/0/0/0/0/0 Lore% 2 Gallery% 5 Achievement% 7 Wizard Run 0 Options --------- ASCII 0 Keyboard 0 Movement Mouse Keybinds 0 Fullscreen 1 Font 24/Smallcaps Map View 76x50 Tactical HUD 1 Map Filters NONE Filters NONE Steam 0 RUN: 8bdb92cb-0b14-41cf-a76e-fdb5d56ac6ed